fUSD/lending_fUSD_20250202
["ID","MTS","AMOUNT","RATE_DAILY","PERIOD"]
[351257464,1738486246388,-500.0,0.00015991,2]
[351257466,1738486246398,-250.0,0.00015991,2]
[351257467,1738486246407,-5837990.23965126,0.00015992,2]
[351257470,1738486246424,-2855.27245575,0.00015992,2]
[351257491,1738486246613,-432.66999619,0.00015892,2]
[351257493,1738486246623,-735.73000381,0.00015992,2]
[351257505,1738486246719,-2949.48873,0.00015992,2]
[351257680,1738486295990,162.58,0.00016658,30]
[351257681,1738486449064,-5558.0,0.000133,5]
[351257682,1738486449088,-150.0,0.00013482,2]
[351257683,1738486449110,-500.0,0.00013663,2]
[351257684,1738486449136,-500.0,0.00013663,2]
[351257685,1738486449159,-150.0,0.0001463,2]
[351257686,1738486449180,-200.0,0.00014993,2]
[351257687,1738486449202,-500.0,0.00015033,2]
[351257688,1738486449224,-420.69,0.00015046,2]
[351257689,1738486449246,-4000.0,0.00015207,2]
[351257690,1738486449270,-378.73,0.00015207,2]
[351257691,1738486449292,-173.17,0.00015455,2]
[351257692,1738486449313,-2758.860574,0.00015672,2]
[351257693,1738486449335,-1565.0633,0.0001574,2]
[351257694,1738486449378,-150.0,0.00015799,2]
[351257695,1738486449420,-15042.3595,0.000158,2]
[351257696,1738486449460,-7949.7787,0.000158,2]
[351257697,1738486449496,-1967.014,0.000158,2]
[351257698,1738486449519,-500.0,0.00015864,2]
[351257699,1738486449542,-2458.3972,0.00015889,2]
[351257700,1738486449564,-10601.557,0.00015889,2]
[351257701,1738486449587,-1000.0,0.0001589,7]
[351257702,1738486449610,-5000.0,0.00015892,2]
[351257703,1738486449631,-1000.0,0.00015892,2]
[351257704,1738486449654,-754.379726,0.000159,2]
[351257705,1738486461416,214.2,0.00017,30]
[351257706,1738486554268,1017.28635831,0.00023,120]
[351257707,1738486665890,93580.0405132,9.722e-05,7]
[351257708,1738486726259,116302.052344,9.722e-05,7]
[351257709,1738486727340,55823.1785485,9.722e-05,7]
[351257710,1738487159358,305.77,0.00010137,2]
[351257712,1738487174140,162.58,0.00016658,30]
[351257824,1738487431564,-168.24,0.00011846,2]
[351257825,1738487431573,-282.413,0.00013,2]
[351257826,1738487431617,-267.587,0.00013,2]
[351257827,1738487431628,-542.25500737,0.00013113,2]
[351257828,1738487431639,-97.91499263,0.00013113,2]
[351257829,1738487431648,-500.0,0.00013663,2]
[351257830,1738487431657,-182.37,0.00013699,2]
[351257831,1738487431671,-641.6388655,0.00014,2]
[351257832,1738487431681,-152.0,0.00014257,3]
[351257833,1738487431691,-150.0,0.00014394,2]
[351257834,1738487431701,-150.0,0.00014424,2]
[351257835,1738487431713,-1000.0,0.0001456,2]
[351257836,1738487431724,-1852.42,0.00014569,2]
[351257837,1738487431733,-3273.85970926,0.00014573,2]
[351257838,1738487431747,-726.14029074,0.00014573,2]
[351257839,1738487431756,-274.07508006,0.00014722,2]
[351257849,1738487431981,-1.44256552,0.00014722,2]
[351257851,1738487431992,-792.35235442,0.00014722,2]
[351257853,1738487432002,-250.0,0.00014763,2]
[351257855,1738487432011,-147.01464958,0.00014896,2]
[351257857,1738487432023,-701.99535042,0.00014896,2]
[351257859,1738487432031,-150.0,0.00014938,2]
[351257861,1738487432041,-150.0,0.00014939,2]
[351257863,1738487432050,-23900.0,0.00014939,2]
[351257865,1738487432059,-752.72,0.00014969,2]
[351257867,1738487432069,-152.0,0.00014983,4]
[351257869,1738487432079,-904.57,0.00014994,2]
[351257871,1738487432088,-600.0,0.00015,2]
[351257873,1738487432100,-173.17,0.00015015,2]
[351257875,1738487432109,-169.78,0.00015022,2]
[351257895,1738487432291,-1544.0,0.000151,2]
[351257896,1738487432301,-300.0,0.000153,5]
[351257897,1738487432311,-1000.0,0.00015337,2]
[351257898,1738487432320,-640.17,0.00015377,2]
[351257899,1738487432329,-600.0,0.000154,5]
[351257900,1738487432338,-900.0,0.000155,5]
[351257901,1738487432347,-1300.0,0.000156,5]
[351257902,1738487432356,-1000.0,0.00015609,2]
[351257903,1738487432366,-1005.0,0.00015649,2]
[351257904,1738487432375,-150.0,0.00015649,2]
[351257905,1738487432384,-3910.0,0.00015649,2]
[351257906,1738487432393,-1110.771,0.00015649,2]
[351257907,1738487432402,-3394.6224582,0.00015672,2]
[351257908,1738487432411,-431.3290073,0.00015674,2]
[351257909,1738487432420,-1600.0,0.000157,5]
[351257910,1738487432431,-152.0,0.00015709,5]
[351257911,1738487432441,-150.0,0.00015785,2]
[351257912,1738487432450,-1000.0,0.00015791,2]
[351257913,1738487432460,-300.0,0.000158,5]
[351257914,1738487432471,-2460.84137,0.0001583,2]
[351257915,1738487432481,-250.0,0.00015834,2]
[351257916,1738487432491,-150.0,0.00015854,2]
[351257917,1738487432501,-225.7,0.00015888,2]
[351257918,1738487432511,-1000.0,0.0001589,7]
[351257919,1738487432520,-1019.59284998,0.00015899,2]
[351257920,1738487432545,-555.90330277,0.00015899,2]
[351257921,1738487432573,-924.50384725,0.00015899,2]
[351257922,1738487432582,-3514.2662,0.00015899,2]
[351257923,1738487432591,-226.9493,0.00015899,2]
[351257924,1738487432601,-1000.0,0.00015899,2]
[351257925,1738487432610,-1392.37818639,0.00015899,2]
[351257926,1738487432621,-296.47195126,0.00015899,2]
[351257927,1738487432632,-884.71156576,0.00015899,2]
[351257928,1738487432641,-2573.56170333,0.00015899,2]
[351257929,1738487432650,-2573.56170333,0.00015899,2]
[351257930,1738487432659,-2573.56170333,0.00015899,2]
[351257931,1738487432669,-1682.28890001,0.00015899,2]
[351257932,1738487432683,-891.27280332,0.00015899,2]
[351257933,1738487432691,-2573.56170333,0.000159,2]
[351257934,1738487432700,-1613.0875,0.000159,2]
[351257935,1738487432711,-2573.56170333,0.000159,2]
[351257936,1738487432720,-2573.56170333,0.000159,2]
[351257937,1738487432729,-2573.56170333,0.000159,2]
[351257938,1738487432738,-167.97729717,0.000159,2]
[351257939,1738487432749,-163.04529578,0.000159,2]
[351257940,1738487432759,-154.6707083,0.000159,2]
[351257941,1738487432769,-512.40913095,0.000159,2]
[351257942,1738487432778,-163.48948264,0.000159,2]
[351257943,1738487432787,-2573.56170333,0.000159,2]
[351257944,1738487432797,-300.0,0.000159,5]
[351257945,1738487432806,-160.66530978,0.000159,2]
[351257946,1738487432815,-205.21113986,0.000159,2]
[351257947,1738487432825,-1408.264533,0.000159,2]
[351257948,1738487432834,-1000.0,0.000159,2]
[351257949,1738487432843,-2500.0,0.000159,2]
[351257950,1738487432852,-200.0,0.00015907,2]
[351257951,1738487432863,-499.02846749,0.00015908,2]
[351257952,1738487432872,-1613.0875,0.00015915,2]
[351257953,1738487432881,-499.02846749,0.00015934,2]
[351257954,1738487432891,-1613.0875,0.0001594,2]
[351257955,1738487432901,-183.15028516,0.00015945,2]
[351257956,1738487432911,-499.02846749,0.00015955,2]
[351257957,1738487432920,-150.0,0.0001596,2]
[351257958,1738487432928,-500.0,0.00015973,2]
[351257959,1738487432934,-490.94479072,0.00015976,2]
[351257960,1738487432947,-1122.14270928,0.00015976,2]
[351257961,1738487432954,-499.02846749,0.00015976,2]
[351257962,1738487432961,-200.0,0.00015985,2]
[351257963,1738487432967,-213.31386255,0.0001599,2]
[351257964,1738487432974,-213.31386255,0.0001599,2]
[351257965,1738487432981,-213.31386255,0.0001599,2]
[351257966,1738487432988,-2654.81537791,0.00015992,2]
[351257967,1738487432997,-398.05286501,0.00015992,2]
[351257968,1738487433007,-1865.69249295,0.00015992,2]
[351257969,1738487433065,-36123.70656133,0.00015992,2]
[351257971,1738487437418,-783.67668438,0.000159,2]
[351257972,1738487437428,-783.67668435,0.00015969,2]
[351257973,1738487437438,-433.58863827,0.00015992,2]
[351257974,1738487437472,-1153.6505952,0.00015992,2]
[351257975,1738487437528,-4302.14915451,0.00015992,2]
[351257976,1738487437540,-585.71239418,0.00015992,2]
[351257977,1738487437552,-2631.39451276,0.00015992,2]
[351257978,1738487437564,-30929.21328636,0.00015992,2]
[351257979,1738487437585,-20483.55811851,0.00015992,2]
[351257980,1738487437596,-19980.95593867,0.00015992,2]
[351257981,1738487437636,-9804.37334659,0.00015992,2]
[351257982,1738487437647,-723.79672714,0.00015992,2]
[351257983,1738487437658,-1507.57772365,0.00015992,2]
[351258099,1738487439579,-571.58977206,0.00015992,2]
[351258100,1738487439686,-6351.73916924,0.00015992,2]
[351258110,1738487440712,-625.93264284,0.00015992,2]
[351258116,1738487442516,-500.0,0.00015991,2]
[351258117,1738487442525,-500.0,0.00015991,2]
[351258118,1738487442535,-500.0,0.00015991,2]
[351258119,1738487442544,-500.0,0.00015991,2]
[351258120,1738487442553,-500.0,0.00015991,2]
[351258121,1738487442562,-500.0,0.00015991,2]
[351258122,1738487442571,-500.0,0.00015991,2]
[351258123,1738487442580,-500.0,0.00015991,2]
[351258124,1738487442590,-233.74141228,0.00015991,2]
[351258125,1738487442599,-500.0,0.00015991,2]
[351258126,1738487442608,-500.0,0.00015991,2]
[351258127,1738487442617,-500.0,0.00015991,2]
[351258128,1738487442626,-500.0,0.00015991,2]
[351258129,1738487442635,-500.0,0.00015991,2]
[351258130,1738487442644,-500.0,0.00015991,2]
[351258131,1738487442654,-500.0,0.00015991,2]
[351258132,1738487442663,-26387.15858772,0.00015992,2]
[351258133,1738487442830,-787018.09086366,0.00015992,2]
[351258134,1738487442850,-15272.7692378,0.00015992,2]
[351258137,1738487445546,-27941.66923879,0.00015899,2]
[351258138,1738487445557,-621082.6218054,0.00015992,2]
[351258139,1738487445702,-1066.92107819,0.00015992,2]
[351258140,1738487445810,-276.10057,0.00015992,2]
[351258141,1738487445866,-3143.528934,0.00015992,2]
[351258246,1738487665102,1334.0,0.00023,120]
[351258250,1738488111110,170.82,0.00010137,2]
[351258254,1738488191184,162.58,0.00016658,30]
[351258267,1738488337276,275.16771606,8e-05,2]
[351258277,1738488482459,13675.52531237,0.0001,2]
[351258278,1738488482483,6028.56,0.0001,2]
[351258279,1738488482513,200000.0,0.0001,2]
[351258280,1738488482543,400000.0,0.0001,2]
[351258281,1738488482570,400000.0,0.0001,2]
[351258282,1738488509519,375.24743478,7.888e-05,2]
[351258283,1738488525373,6974.30772878,8e-05,2]
[351258286,1738488527038,17013.07073313,8e-05,2]
[351258305,1738488632163,-300.0,9.999e-05,2]
[351258306,1738488632173,-150.0,9.999e-05,2]
[351258307,1738488632183,-8973.99800782,0.0001,2]
[351258308,1738488632213,-212514.14019531,0.0001,2]
[351258309,1738488632224,-158173.34408081,0.0001,2]
[351258310,1738488632240,-769.51208667,0.0001,2]
[351258311,1738488632252,-810.11422728,0.0001,2]
[351258312,1738488632274,-15340.91543956,0.0001,2]
[351258359,1738488637619,-7772.63362544,0.0001,2]
[351258360,1738488637629,-823.07977492,0.0001,2]
[351258361,1738488637678,-2076.34305428,0.0001,2]
[351258362,1738488637743,-132959.17287726,0.0001,2]
[351258363,1738488637753,-287.0,0.00010999,2]
[351258364,1738488637763,-2966.89753735,0.00011099,2]
[351258365,1738488637773,-2966.89753729,0.00011099,2]
[351258366,1738488637783,-2966.89753729,0.00011121,2]
[351258367,1738488637793,-2966.89753729,0.00011233,2]
[351258368,1738488637803,-689.95,0.00011506,2]
[351258369,1738488637812,-250.0,0.00011819,2]
[351258370,1738488637822,-3222.38588231,0.000119,2]
[351258371,1738488637831,-2109.01802673,0.000119,2]
[351258372,1738488637841,-232.59875898,0.000119,2]
[351258373,1738488637851,-288.44666412,0.000119,2]
[351258374,1738488637860,-938.843022,0.000119,2]
[351258375,1738488637870,-14778.90234139,0.000119,2]
[351258376,1738488637880,-168.29,0.00011912,2]
[351258377,1738488637890,-150.0,0.00011956,2]
[351258378,1738488637900,-31303.0,0.00011973,2]
[351258379,1738488637910,-500.0,0.00011973,2]
[351258380,1738488637920,-157.9880632,0.00011982,2]
[351258381,1738488637930,-1544425.29707098,0.00011992,2]
[351258382,1738488637940,-4572133.8160123,0.00011992,2]
[351258383,1738488637949,-300.0,0.00011999,2]
[351258384,1738488637959,-500.0,0.00011999,2]
[351258385,1738488637969,-359.30460136,0.00011999,2]
[351258386,1738488637979,-687.05110013,0.00012,2]
[351258387,1738488637990,-560.57781308,0.00012,2]
[351258388,1738488638000,-2684147.41713935,0.00012,2]
[351258389,1738488638013,-740.34726879,0.00012,2]
[351258390,1738488638025,-23572.34410261,0.00012,2]
[351258391,1738488638127,-481.40156262,0.00012,2]
[351258392,1738488638207,-1199.13053279,0.00012,2]
[351258393,1738488638229,-7240.44717167,0.00012,2]
[351258394,1738488638246,-1248.82727493,0.00012,2]
[351258398,1738488639818,-2966.89753729,0.00011344,2]
[351258399,1738488639828,-12566.96311658,0.00012,2]
[351258400,1738488639924,-235440.34282232,0.00012,2]
[351258401,1738488639936,-99783.07645382,0.00012,2]
[351258402,1738488639948,-1092.27862809,0.00012,2]
[351258403,1738488640003,-365.47878836,0.00012,2]
[351258404,1738488640015,-576.99,0.00012,2]
[351258405,1738488640046,-7153.73604969,0.00012,2]
[351258414,1738488642931,-560.47152291,0.00012,2]
[351258415,1738488643027,-349134.62844505,0.00012,2]
[351258416,1738488643091,-5744.27003604,0.00012,2]
[351258425,1738488964558,850.92516107,0.00023,120]
[351258427,1738489360868,162.58,0.00016658,30]
[351258428,1738489663086,708.17,9.568e-05,2]
[351258429,1738489738734,168.29,8.99e-05,2]
[351258437,1738489831867,-168.54,0.00010137,2]
[351258438,1738489831876,-150.0,0.00011151,2]
[351258439,1738489831886,-150.0,0.00011151,2]
[351258440,1738489831896,-150.0,0.00011151,2]
[351258441,1738489831905,-150.0,0.00011304,2]
[351258442,1738489831915,-177.71398915,0.00011364,2]
[351258443,1738489831925,-770.67,0.00011449,2]
[351258444,1738489831934,-1974.78,0.00011464,2]
[351258445,1738489831944,-1000.0,0.00011476,2]
[351258446,1738489831953,-203.37,0.00011497,2]
[351258447,1738489831963,-413.17293573,0.00011518,2]
[351258448,1738489831973,-14563.66907513,0.00011537,2]
[351258449,1738489831995,-9336.33092487,0.00011537,2]
[351258450,1738489832005,-1697.91,0.00011575,2]
[351258451,1738489832014,-216327.0,0.00011644,2]
[351258452,1738489832024,-6585.41306064,0.00011662,2]
[351258453,1738489832033,-302.217,0.0001176,2]
[351258454,1738489832042,-4431.445,0.0001176,2]
[351258455,1738489832051,-150.0,0.0001176,2]
[351258456,1738489832061,-195.0941088,0.00011761,2]
[351258457,1738489832070,-708.17,0.00011831,2]
[351258458,1738489832080,-679.56,0.00011843,2]
[351258459,1738489832089,-170.68730889,0.000119,2]
[351258460,1738489832098,-163.48948263,0.000119,2]
[351258461,1738489832108,-5252.40115113,0.000119,2]
[351258462,1738489832117,-471.93322253,0.000119,2]
[351258463,1738489832127,-179.71084403,0.000119,2]
[351258464,1738489832137,-2785.0,0.00011973,2]
[351258465,1738489832147,-501.16645031,0.00011973,2]
[351258466,1738489832158,-500.0,0.00011973,2]
[351258467,1738489832168,-500.0,0.00011973,2]
[351258468,1738489832178,-501.59209749,0.00011973,2]
[351258469,1738489832188,-164.69930734,0.00011973,2]
[351258470,1738489832198,-500.0,0.00011973,2]
[351258471,1738489832207,-220.14013228,0.0001199,2]
[351258472,1738489832217,-778.665814,0.00011999,3]
[351258473,1738489832226,-1471.84744085,0.00011999,3]
[351258474,1738489832235,-151.77621427,0.00011999,2]
[351258475,1738489832245,-389.96679915,0.00011999,2]
[351258476,1738489832255,-555154.02791253,0.00012,2]
[351258480,1738489832960,-11571.91842093,0.00012,2]
[351258481,1738489832972,-238055.00844013,0.00012,2]
[351258482,1738489833102,-1697.57653795,0.00012,2]
[351258483,1738489833119,-549342.88176212,0.00012,2]
[351258484,1738489833130,-307.31279,0.00012,2]
[351258488,1738489838207,-19875.31804001,0.00012,2]
[351258497,1738489840074,-1476.71763093,0.00012,2]
[351258498,1738489840091,-19886.67596401,0.00012,2]
[351258499,1738489840214,-1356.22863971,0.00012,2]
[351258500,1738489840236,-780.92768002,0.00012,2]
[351258529,1738489843503,-1303.59125,0.00012,2]
[351258546,1738489845929,-449074.48432403,0.00012,2]
[351258547,1738489845941,-3463.59641786,0.00012,2]
[351258548,1738489846040,-1333.51268098,0.00012,2]
[351258549,1738489846051,-1984.99544472,0.00012,2]
[351258550,1738489846097,-4171.13058114,0.00012,2]
[351258551,1738489846107,-760.07056886,0.00012,2]
[351258552,1738489846116,-3632.86741,0.00012,2]
[351258553,1738489846125,-6585.41306057,0.00012122,2]
[351258554,1738489846135,-5252.40115104,0.00012344,2]
[351258555,1738489846144,-179.49936171,0.00012521,2]
[351258556,1738489846153,-708.42892939,0.00012521,2]
[351258557,1738489846162,-1000.0,0.00012521,2]
[351258558,1738489846171,-471.93322248,0.00012567,2]
[351258559,1738489846180,-6585.41306057,0.00012582,2]
[351258560,1738489846190,-5252.40115104,0.00012789,2]
[351258561,1738489846199,-255.0,0.0001283,2]
[351258562,1738489846209,-1000.0,0.00012911,2]
[351258563,1738489846218,-203.37,0.00012934,2]
[351258564,1738489846227,-550.0,0.00013,2]
[351258565,1738489846236,-6585.41306057,0.00013041,2]
[351258566,1738489846245,-568.51821113,0.00013164,2]
[351258567,1738489846255,-500.0,0.00013164,2]
[351258569,1738489846263,-5252.40115104,0.00013233,2]
[351258571,1738489846272,-471.93322248,0.00013233,2]
[351258573,1738489846281,-250.0,0.0001332,2]
[351258575,1738489846291,-477.04,0.0001343,2]
[351258577,1738489846300,-6585.41306057,0.00013501,2]
[351258579,1738489846309,-1500.0,0.00013522,2]
[351258581,1738489846318,-5252.40115104,0.00013677,2]
[351258583,1738489846327,-182.13,0.00013699,2]
[351258585,1738489846337,-3828.12,0.00013699,2]
[351258587,1738489846346,-1280.0122534,0.000139,2]
[351258590,1738489846362,-1280.01225338,0.000139,2]
[351258592,1738489846375,-1280.01225338,0.000139,2]
[351258594,1738489846385,-1280.01225338,0.000139,2]
[351258596,1738489846395,-1280.01225338,0.000139,2]
[351258598,1738489846404,-1280.01225338,0.000139,2]
[351258600,1738489846414,-1280.01225338,0.000139,2]
[351258602,1738489846424,-1280.01225338,0.000139,2]
[351258605,1738489846434,-1280.01225338,0.000139,2]
[351258607,1738489846446,-1280.01225338,0.000139,2]
[351258609,1738489846456,-471.93322248,0.000139,2]
[351258611,1738489846466,-835.22,0.00013915,2]
[351258613,1738489846476,-6585.41306057,0.00013961,2]
[351258615,1738489846486,-1280.01225338,0.00013969,2]
[351258617,1738489846495,-169.51,0.00014095,2]
[351258619,1738489846507,-708.17,0.00014095,2]
[351258621,1738489846518,-5252.40115104,0.00014122,2]
[351258623,1738489846528,-1280.01225338,0.00014176,2]
[351258625,1738489846538,-1000.0,0.00014345,2]
[351258627,1738489846548,-203.37,0.00014371,2]
[351258629,1738489846558,-1280.01225338,0.00014383,2]
[351258631,1738489846568,-318.0,0.00014401,13]
[351258633,1738489846578,-6585.41306057,0.00014421,2]
[351258635,1738489846588,-1183.0,0.00014561,2]
[351258637,1738489846597,-5252.40115104,0.00014566,2]
[351258639,1738489846607,-471.93322248,0.00014567,2]
[351258641,1738489846618,-1280.01225338,0.0001459,2]
[351258643,1738489846627,-152.0,0.0001462,3]
[351258645,1738489846637,-171.88,0.00014744,2]
[351258647,1738489846647,-1280.01225338,0.00014797,2]
[351258649,1738489846657,-2000.0,0.0001482,2]
[351258651,1738489846667,-500.0,0.00014877,2]
[351258654,1738489846677,-6585.41306057,0.0001488,2]
[351258655,1738489846686,-1546.0,0.00015,2]
[351258658,1738489846698,-600.0,0.00015,2]
[351258660,1738489846708,-151.72679871,0.00015,20]
[351258662,1738489846717,-5000.0,0.00015,2]
[351258664,1738489846727,-1280.01225338,0.00015003,2]
[351258666,1738489846736,-5252.40115104,0.0001501,2]
[351258668,1738489846746,-1300.37,0.00015068,2]
[351258670,1738489846756,-173.51,0.00015125,2]
[351258672,1738489846766,-1280.01225338,0.0001521,2]
[351258674,1738489846776,-150.0,0.00015217,2]
[351258676,1738489846786,-471.93322248,0.00015233,2]
[351258678,1738489846795,-222.220937,0.00015249,2]
[351258679,1738489846806,-1000.0,0.000153,2]
[351258680,1738489846816,-6585.41306057,0.0001534,2]
[351258681,1738489846826,-1000.0,0.000154,2]
[351258682,1738489846836,-1000.0,0.000154,2]
[351258683,1738489846846,-1280.01225338,0.00015417,2]
[351258684,1738489846858,-150.0,0.00015433,2]
[351258685,1738489846868,-222.220937,0.0001544,2]
[351258686,1738489846879,-5252.40115104,0.00015455,2]
[351258687,1738489846889,-1000.0,0.000155,2]
[351258688,1738489846899,-1000.0,0.00015527,2]
[351258689,1738489846909,-437.68,0.00015616,2]
[351258690,1738489846919,-1280.01225338,0.00015624,2]
[351258691,1738489846929,-222.220937,0.00015631,2]
[351258692,1738489846940,-835.22,0.00015654,2]
[351258693,1738489846950,-5980.6413937,0.00015672,2]
[351258694,1738489846959,-792.5,0.00015699,2]
[351258695,1738489846969,-50215.53330549,0.000157,2]
[351258696,1738489847013,-332.5888798,0.000157,2]
[351258697,1738489847024,-3368.4382512,0.000157,2]
[351258698,1738489944735,9261.31551677,9.28e-05,7]
[351258699,1738489964911,28572.6604425,9.28e-05,7]
[351258702,1738490202598,500.7287952,0.00023,120]
[351258703,1738490356496,162.58,0.00016658,30]
[351258705,1738491032363,-290.48,0.00010137,2]
[351258706,1738491032373,-163.72,0.00010137,2]
[351258707,1738491032383,-150.0,0.00011151,2]
[351258708,1738491032392,-150.0,0.00011151,2]
[351258709,1738491032402,-150.0,0.00011693,2]
[351258710,1738491032411,-601.94,0.0001218,2]
[351258711,1738491032421,-500.0,0.00013164,2]
[351258712,1738491032431,-182.13,0.00013699,2]
[351258713,1738491032440,-506.0,0.00013699,2]
[351258714,1738491032449,-1469.6586,0.00014027,2]
[351258715,1738491032459,-300.0,0.00014039,2]
[351258716,1738491032468,-2751.0,0.0001404,2]
[351258717,1738491032478,-500.0,0.0001404,2]
[351258718,1738491032487,-2664.03,0.00014096,2]
[351258719,1738491032496,-543.59,0.00014127,2]
[351258720,1738491032506,-462.82,0.00014146,2]
[351258721,1738491032516,-1050.22,0.00014212,2]
[351258722,1738491032526,-250.0,0.00014275,2]
[351258723,1738491032535,-315.03,0.00014325,2]
[351258724,1738491032545,-169.51,0.00014389,2]
[351258725,1738491032554,-150.0,0.00014436,2]
[351258726,1738491032563,-601.94,0.00014444,2]
[351258727,1738491032573,-4000.0,0.000146,2]
[351258728,1738491032582,-1000.0,0.00014603,2]
[351258729,1738491032591,-6776.27,0.00014687,2]
[351258730,1738491032600,-1000.0,0.00014739,2]
[351258731,1738491032609,-1548.36,0.00014795,2]
[351258732,1738491032618,-439.34,0.00014795,2]
[351258733,1738491032627,-439.34,0.00014795,2]
[351258734,1738491032636,-300.0,0.00015,2]
[351258735,1738491032645,-1392.0,0.00015,2]
[351258736,1738491032654,-150.0,0.00015181,2]
[351258737,1738491032663,-375.71977599,0.00015193,2]
[351258738,1738491032673,-1000.0,0.000153,2]
[351258739,1738491032682,-285.91630059,0.00015476,2]
[351258740,1738491032691,-875.36,0.00015479,2]
[351258741,1738491032700,-298.2,0.00015479,2]
[351258742,1738491032710,-242.1247,0.000155,2]
[351258743,1738491032719,-1566.0333,0.000155,2]
[351258744,1738491032728,-1786.0046,0.000155,2]
[351258745,1738491032737,-4160.5837,0.000155,2]
[351258746,1738491032747,-1231.0,0.000155,2]
[351258747,1738491032756,-1685.38020846,0.000155,2]
[351258748,1738491032765,-431.3290073,0.00015522,2]
[351258749,1738491032774,-1685.38020845,0.00015544,2]
[351258750,1738491032783,-1685.38020845,0.00015589,2]
[351258751,1738491032792,-1000.0,0.00015591,2]
[351258752,1738491032801,-2500.0,0.00015591,2]
[351258753,1738491032811,-56283.0029,0.000156,2]
[351258754,1738491032820,-5784.0226,0.000156,2]
[351258755,1738491032829,-381.37,0.000156,2]
[351258756,1738491032839,-377.67,0.000156,2]
[351258757,1738491032848,-381.84,0.000156,2]
[351258758,1738491032858,-12753.9999,0.000156,2]
[351258759,1738491032868,-19863.3941,0.000156,2]
[351258760,1738491032885,-1000.0,0.000156,2]
[351258761,1738491032895,-4828.1826,0.000156,2]
[351258762,1738491032903,-1657.1299,0.000156,2]
[351258763,1738491032913,-7410.0533,0.000156,2]
[351258764,1738491032925,-515.7094,0.000156,2]
[351258765,1738491032934,-1685.38020845,0.00015633,2]
[351258766,1738491032944,-544.21837399,0.00015654,2]
[351258767,1738491032956,-241.774,0.00015654,2]
[351258768,1738491032965,-3545.156,0.00015654,2]
[351258769,1738491032974,-2990.3206968,0.00015672,2]
[351258770,1738491032984,-1685.38020845,0.00015678,2]
[351258771,1738491032993,-10229.079155,0.00015691,2]
[351258772,1738491033535,-2898.510797,0.00015691,2]
[351258773,1738491038273,-400.15362612,0.00015691,2]
[351258774,1738491038284,-9075.44774767,0.00015691,2]
[351258775,1738491038297,-6256.8,0.00015691,2]
[351258776,1738491038356,-1500.0,0.00015691,2]
[351258817,1738491040133,-1750.0830848,0.00015691,2]
[351258818,1738491040298,-4123.24258941,0.00015691,2]
[351258819,1738491040308,-10765.91774298,0.000157,2]
[351258826,1738491043349,-375.6,0.00015691,2]
[351258827,1738491043359,-3443.02075702,0.000157,2]
[351258828,1738491043368,-500.0,0.000157,2]
[351258829,1738491043377,-2511.0111,0.000157,2]
[351258830,1738491043387,-149957.75724971,0.000157,2]
[351258831,1738491043396,-21547.01456764,0.000157,2]
[351259467,1738491248117,165.92,0.00016658,30]
[351259469,1738491920504,446.04842915,9e-05,2]
[351259470,1738491956175,4170.96605304,6.94e-05,2]
[351259473,1738492040339,205.0,9.8e-05,2]
[351259474,1738492062975,1120.1735836,0.0001,2]
[351259475,1738492079120,8674.8264164,0.0001,2]
[351259476,1738492079141,10000.0,0.0001,2]
[351259477,1738492079162,756.7771188,0.0001,2]
[351259478,1738492082927,9243.2228812,0.0001,2]
[351259479,1738492082962,10000.0,0.0001,2]
[351259480,1738492083005,10000.0,0.0001,2]
[351259481,1738492083040,10000.0,0.0001,2]
[351259482,1738492083064,10000.0,0.0001,2]
[351259483,1738492083087,10000.0,0.0001,2]